bitfinex-derivatives/quotes_BTCF0:USTF0_20250901
["timestamp","ask_amount","ask_price","bid_price","bid_amount"]
[1756734387330,0.92808,109040.0,109030.0,0.08342]
[1756734387526,2.29764,109050.0,109040.0,0.08342]
[1756734387734,1.95684,109050.0,109040.0,0.08342]
[1756734387936,1.95684,109050.0,109040.0,0.43342]
[1756734387937,0.9482,109050.0,109040.0,0.43342]
[1756734388135,0.92824,109060.0,109050.0,0.04978]
[1756734388336,0.92824,109060.0,109050.0,0.82852]
[1756734388533,0.3608,109070.0,109050.0,0.79304]
[1756734388729,0.3608,109080.0,109060.0,0.44422]
[1756734388930,1.66943168,109080.0,109060.0,0.77422]
[1756734389640,1.66943168,109080.0,109060.0,0.75422]
[1756734389836,1.66943168,109080.0,109060.0,0.76422]
[1756734390339,1.66943168,109080.0,109060.0,0.44422]
[1756734390542,0.3608,109070.0,109060.0,0.08342]
[1756734390838,0.3608,109070.0,109060.0,0.46342]
[1756734391037,0.37939168,109070.0,109060.0,0.46342]
[1756734391433,1.67043168,109080.0,109060.0,0.46342]
[1756734391629,0.9274,109070.0,109060.0,0.46342]
[1756734391839,0.9314,109070.0,109060.0,0.08342]
[1756734392035,1.31079168,109070.0,109060.0,0.04794]
[1756734392237,1.92159168,109070.0,109050.0,0.03764]
[1756734392446,0.74019168,109060.0,109040.0,0.44422]
[1756734392630,0.74019168,109060.0,109040.0,0.79422]
[1756734392939,0.92776,109060.0,109050.0,0.45852]
[1756734393135,0.92776,109060.0,109050.0,0.81852]
[1756734393329,0.92776,109060.0,109050.0,0.45852]
[1756734393534,0.92776,109060.0,109050.0,0.79852]
[1756734394143,0.92752,109060.0,109050.0,0.79852]
[1756734394441,0.92752,109060.0,109050.0,0.45852]
[1756734394638,0.3638,109070.0,109060.0,0.03548]
[1756734394844,1.29132,109070.0,109060.0,0.08326]
[1756734395140,1.28832,109070.0,109060.0,0.08326]
[1756734395344,1.66771168,109070.0,109050.0,0.41344]
[1756734395645,0.3608,109060.0,109050.0,0.06308]
[1756734395938,0.99319168,109060.0,109050.0,0.001]
[1756734396638,0.99019168,109060.0,109050.0,0.001]
[1756734397543,0.99019168,109060.0,109020.0,0.08512]
[1756734397732,0.74019168,109040.0,109020.0,0.46512]
[1756734398938,0.74019168,109040.0,109030.0,0.03734]
[1756734399147,0.74019168,109040.0,109030.0,0.13512]
[1756734399340,0.3608,109040.0,109030.0,0.13512]
[1756734400047,0.3608,109040.0,109030.0,0.09778]
[1756734400342,1.28564,109050.0,109030.0,0.34778]
[1756734400547,1.66515168,109050.0,109030.0,0.05]
[1756734400747,0.74019168,109040.0,109030.0,0.05]
[1756734400944,0.74019168,109040.0,109020.0,0.41158]
[1756734401152,1.66843168,109040.0,109020.0,0.56892]
[1756734401541,1.66843168,109040.0,109030.0,0.002]
[1756734401741,1.66843168,109040.0,109030.0,0.0255]
[1756734402347,1.66843168,109040.0,109030.0,0.0235]
[1756734402547,0.74019168,109040.0,109030.0,0.0235]
[1756734402846,1.28884,109040.0,109030.0,0.08512]
[1756734403641,0.74019168,109050.0,109030.0,0.08512]
[1756734403845,0.3608,109050.0,109040.0,0.08512]
[1756734404143,1.66926343,109060.0,109050.0,0.09869]
[1756734404645,1.2876,109060.0,109050.0,0.06135]
[1756734404838,0.74246343,109060.0,109050.0,0.06135]
[1756734405044,1.66922343,109060.0,109050.0,0.09869]
[1756734405245,1.66870343,109070.0,109060.0,0.03734]
[1756734405444,0.76337933,109070.0,109060.0,0.08512]
[1756734405643,0.3817159,109070.0,109060.0,0.08512]
[1756734405846,1.67026343,109070.0,109060.0,0.08512]
[1756734406052,1.2886,109070.0,109060.0,0.08512]
[1756734406248,0.003,109060.0,109050.0,0.06135]
[1756734406455,0.3820058,109060.0,109050.0,0.09869]
[1756734406756,0.003,109060.0,109050.0,0.09869]
[1756734406947,1.6716058,109070.0,109050.0,0.09869]
[1756734407143,0.3608,109060.0,109050.0,0.09869]
[1756734407956,0.3608,109060.0,109040.0,0.40858]
[1756734408156,0.7398058,109060.0,109040.0,0.44592]
[1756734408359,0.3608,109060.0,109050.0,0.09869]
[1756734408555,0.926,109060.0,109050.0,0.17254963]
[1756734408857,1.2868,109060.0,109050.0,0.17254963]
[1756734409154,1.6668058,109060.0,109050.0,0.13520963]
[1756734409355,1.2878,109060.0,109050.0,0.17254963]
[1756734409555,1.2868,109060.0,109050.0,0.17254963]
[1756734409759,1.6688058,109060.0,109040.0,0.3608]
[1756734409951,1.6688058,109060.0,109040.0,0.44592]
[1756734409952,0.3790058,109050.0,109040.0,0.44592]
[1756734410147,1.2898,109060.0,109050.0,0.05091]
[1756734410354,1.2898,109060.0,109050.0,0.09869]
[1756734410558,0.3638,109060.0,109050.0,0.09869]
[1756734410754,1.29272,109060.0,109050.0,0.09869]
[1756734411051,0.93192,109060.0,109050.0,0.45949]
[1756734411252,0.003,109060.0,109050.0,0.82949]
[1756734411450,0.003,109060.0,109050.0,0.46869]
[1756734412058,0.003,109060.0,109050.0,0.09869]
[1756734412250,0.003,109060.0,109050.0,0.82949]
[1756734412753,0.003,109060.0,109050.0,0.46869]
[1756734413151,0.003,109060.0,109050.0,1.15406838]
[1756734413455,0.003,109060.0,109050.0,1.53307418]
[1756734413656,0.3608,109080.0,109050.0,1.58742578]
[1756734413852,1.30034,109090.0,109080.0,0.04778]
[1756734414158,0.37338,109090.0,109080.0,0.46512]
[1756734414457,0.3608,109090.0,109080.0,0.39512]
[1756734414752,0.37338,109090.0,109080.0,0.46512]
[1756734414953,0.37338,109090.0,109080.0,0.08512]
[1756734415153,0.36559,109090.0,109080.0,0.45512]
[1756734415549,0.36559,109090.0,109080.0,0.08512]
[1756734415756,0.36859,109090.0,109080.0,0.08512]
[1756734415952,0.37338,109090.0,109080.0,0.08512]
[1756734416151,0.01258,109090.0,109080.0,0.08512]
[1756734416457,0.01258,109090.0,109080.0,0.46512]
[1756734416658,0.3638,109100.0,109080.0,0.62778]
[1756734416854,0.37338,109100.0,109090.0,0.08512]
[1756734417048,0.01258,109100.0,109090.0,0.40512]
[1756734417253,0.01258,109100.0,109090.0,0.39512]
[1756734417855,0.01258,109100.0,109090.0,0.08512]
[1756734418856,0.37338,109100.0,109090.0,0.08512]
[1756734419450,0.37438,109100.0,109090.0,0.08512]
[1756734419853,0.01358,109100.0,109090.0,0.08512]
[1756734420252,0.01358,109100.0,109090.0,0.44592]
[1756734420451,0.001,109100.0,109090.0,1.06592]
[1756734420652,0.001,109100.0,109090.0,1.4449258]
[1756734420953,0.001,109100.0,109090.0,1.0749258]
[1756734421152,0.001,109100.0,109090.0,1.07592]
[1756734421347,0.001,109100.0,109090.0,2.00124]
[1756734421549,0.001,109100.0,109090.0,1.4549258]
[1756734421955,0.001,109100.0,109090.0,1.07592]
[1756734422160,0.001,109100.0,109090.0,1.4549258]
[1756734422357,0.36859,109120.0,109110.0,0.0235]
[1756734422660,0.37338,109120.0,109110.0,0.08512]
[1756734423950,0.37438,109120.0,109110.0,0.08512]
[1756734425254,0.7533858,109120.0,109110.0,0.08512]
[1756734425456,0.00958,109100.0,109090.0,0.001]
[1756734425761,2.0361858,109100.0,109090.0,0.001]
[1756734425964,2.28867679,109100.0,109090.0,0.001]
[1756734426363,0.37338,109100.0,109090.0,0.40558]
[1756734426559,1.29578,109110.0,109100.0,0.0514]
[1756734426869,1.29578,109110.0,109100.0,0.09897]
[1756734427058,0.01258,109100.0,109090.0,0.02413]
[1756734427257,0.01258,109100.0,109090.0,0.04757]
[1756734427563,0.3608,109110.0,109100.0,0.09897]
[1756734427761,0.01358,109120.0,109110.0,0.08458]
[1756734427960,0.01358,109120.0,109110.0,0.82607679]
[1756734428163,0.01258,109120.0,109110.0,0.45458]
[1756734428560,0.37338,109120.0,109110.0,0.08916]
[1756734429167,0.75487679,109120.0,109110.0,0.08916]
[1756734429359,0.75487679,109120.0,109110.0,0.41916]
[1756734429360,0.37338,109120.0,109110.0,0.41916]
[1756734429560,0.37338,109120.0,109110.0,0.08916]
[1756734429755,0.75487679,109120.0,109110.0,0.00458]
[1756734429968,1.00487679,109120.0,109110.0,0.00458]
[1756734430161,1.00787679,109120.0,109110.0,0.00458]
[1756734431361,1.00487679,109120.0,109110.0,0.00458]
[1756734431660,1.38937358,109120.0,109110.0,0.00458]
[1756734431862,1.00787679,109120.0,109110.0,0.00158]
[1756734432469,1.00587679,109120.0,109110.0,0.00158]
[1756734432768,1.00687679,109120.0,109110.0,0.00158]
[1756734432967,1.29946,109120.0,109110.0,0.42616]
[1756734433176,1.29946,109120.0,109110.0,0.40616]
[1756734433177,0.93794,109120.0,109110.0,0.40616]
[1756734433372,0.94094,109120.0,109110.0,0.40616]
[1756734433574,1.30174,109120.0,109110.0,0.08616]
[1756734433876,2.64473358,109120.0,109110.0,0.00158]
[1756734434080,2.66159507,109120.0,109110.0,0.00158]
[1756734434271,2.66159507,109120.0,109060.0,0.39781]
[1756734434466,0.3608,109080.0,109060.0,0.78837]
[1756734434673,1.28368,109100.0,109070.0,0.78986679]
[1756734434874,1.66517679,109100.0,109080.0,0.08458]
[1756734435086,1.28368,109100.0,109080.0,0.40458]
[1756734435573,1.66517679,109100.0,109080.0,0.40458]
[1756734436171,1.66517679,109100.0,109080.0,0.39458]
[1756734436372,0.3608,109100.0,109080.0,0.35757]
[1756734436571,0.3608,109100.0,109090.0,0.08458]
[1756734437469,0.3618,109100.0,109090.0,1.09607679]
[1756734437868,0.001,109100.0,109090.0,1.45687679]
[1756734438573,0.001,109100.0,109090.0,1.54853869]
[1756734439374,0.001,109100.0,109090.0,1.54953869]
[1756734439572,0.001,109100.0,109090.0,1.1680419]
[1756734439775,0.001,109100.0,109090.0,1.54953869]
[1756734440075,1.28316,109130.0,109090.0,1.54953869]
[1756734440277,1.28316,109130.0,109110.0,0.78986679]
[1756734440278,1.61316,109130.0,109110.0,0.78986679]
[1756734440476,0.6908,109130.0,109120.0,0.06114]
[1756734441485,0.71171279,109130.0,109120.0,0.02413]
[1756734441679,0.331,109130.0,109120.0,0.08458]
[1756734441878,0.6918,109130.0,109120.0,0.04757]
[1756734442277,1.07329679,109130.0,109120.0,0.04757]
[1756734442990,0.6928,109130.0,109120.0,0.04757]
[1756734444087,0.6948,109130.0,109120.0,0.04757]
[1756734444380,0.334,109130.0,109120.0,1.18687679]
[1756734444580,0.004,109130.0,109120.0,0.69538]
[1756734444786,0.004,109130.0,109120.0,1.52851359]
[1756734444991,0.004,109130.0,109120.0,1.43687679]
[1756734445486,0.004,109130.0,109120.0,2.35615679]
[1756734445883,0.004,109130.0,109120.0,1.43687679]
[1756734446189,0.004,109130.0,109120.0,2.35603679]
[1756734446390,0.003,109130.0,109120.0,2.35603679]
[1756734446586,0.003,109130.0,109120.0,2.35651679]
[1756734447090,0.003,109130.0,109120.0,2.35627679]
[1756734447291,0.74229679,109150.0,109120.0,2.31926679]
[1756734447589,1.09306089,109150.0,109140.0,0.08458]
[1756734447983,0.7115641,109150.0,109140.0,0.46458]
[1756734448386,0.3507641,109150.0,109140.0,0.46458]
[1756734448594,0.0207641,109150.0,109140.0,0.91878351]
[1756734448884,0.3608,109160.0,109150.0,0.09897]
[1756734449090,0.7308,109160.0,109150.0,0.10232493]
[1756734449293,0.7308,109160.0,109150.0,0.44232493]
[1756734449592,0.3608,109160.0,109150.0,0.44232493]
[1756734449792,0.3608,109160.0,109150.0,1.01940493]
[1756734449988,0.3608,109160.0,109150.0,1.34880493]
[1756734450294,0.3608,109160.0,109150.0,1.01880493]
[1756734450488,0.3628,109160.0,109150.0,1.01880493]
[1756734450691,0.3628,109160.0,109150.0,0.09897]
[1756734451197,0.74429679,109160.0,109150.0,0.09897]
[1756734451788,0.74729679,109160.0,109150.0,0.09897]
[1756734452094,0.3658,109160.0,109150.0,0.09897]
[1756734452596,0.3658,109160.0,109150.0,1.01533]
[1756734453291,0.3648,109160.0,109150.0,1.01533]
[1756734453692,0.3648,109160.0,109150.0,1.38533]
[1756734454897,0.002,109160.0,109150.0,1.38533]
[1756734455106,0.001,109160.0,109150.0,1.38533]
[1756734455487,0.001,109160.0,109150.0,2.12762679]
[1756734455690,0.3608,109180.0,109150.0,2.12762679]
[1756734455995,0.001,109160.0,109150.0,2.12632679]
[1756734456898,0.001,109160.0,109150.0,2.37632679]
[1756734457100,0.001,109160.0,109150.0,2.46793839]
[1756734457291,0.36498,109190.0,109180.0,0.08433]
[1756734457490,1.12647679,109190.0,109180.0,0.08433]
[1756734458408,1.13247679,109190.0,109180.0,0.08433]
[1756734459315,1.12947679,109190.0,109180.0,0.04862]
[1756734459806,1.13247679,109190.0,109180.0,0.04862]
[1756734460399,1.13047679,109190.0,109180.0,0.04862]
[1756734461998,1.13047679,109190.0,109180.0,0.08433]
[1756734462400,0.74898,109190.0,109180.0,0.08433]
[1756734463412,0.38818,109190.0,109180.0,1.20662679]
[1756734463602,0.01818,109190.0,109180.0,0.84582679]
[1756734464108,0.01559,109190.0,109180.0,0.46433]
[1756734464606,0.00818,109190.0,109180.0,0.46433]
[1756734465009,0.00818,109190.0,109180.0,1.37493]
[1756734465897,2.32846806,109190.0,109150.0,0.01439]
[1756734466101,0.74647679,109160.0,109150.0,0.02405]
[1756734466813,0.74647679,109160.0,109150.0,0.09901]
[1756734467005,0.74647679,109160.0,109150.0,0.10101]
[1756734467210,0.74647679,109160.0,109150.0,0.05262]
[1756734467410,1.32647679,109160.0,109150.0,0.004]
[1756734467604,1.72988584,109160.0,109150.0,0.004]
[1756734467804,1.34838905,109160.0,109150.0,0.004]
[1756734468107,1.01838905,109160.0,109150.0,0.004]
[1756734468302,1.33838905,109160.0,109150.0,0.004]
[1756734468501,1.01838905,109160.0,109150.0,0.004]
[1756734469105,1.37838905,109160.0,109150.0,0.002]
[1756734469310,1.01938905,109160.0,109150.0,0.002]
[1756734469698,1.02038905,109160.0,109130.0,0.96734685]
[1756734469909,0.3618,109140.0,109130.0,1.33596685]
[1756734470107,0.3618,109140.0,109130.0,0.42628685]
[1756734470310,0.74647679,109140.0,109130.0,0.01867254]
[1756734470911,0.74647679,109140.0,109130.0,0.01967254]
[1756734472613,0.74747679,109140.0,109130.0,0.01867254]
[1756734472820,0.74747679,109140.0,109130.0,0.04272254]
[1756734473118,0.74747679,109140.0,109130.0,0.06729254]
[1756734473311,0.74947679,109140.0,109130.0,0.06729254]
[1756734473912,0.36798,109140.0,109130.0,0.10300254]
[1756734474113,0.74947679,109140.0,109130.0,0.10300254]
[1756734475602,0.74947679,109140.0,109130.0,0.06729254]
[1756734475808,0.74947679,109140.0,109130.0,0.01867254]
[1756734476321,0.74947679,109140.0,109130.0,0.04272254]
[1756734477416,0.74947679,109140.0,109130.0,0.10300254]
[1756734477618,0.74947679,109140.0,109130.0,0.04272254]
[1756734477920,0.00418,109120.0,109110.0,0.10320617]
[1756734478104,0.74647679,109120.0,109110.0,0.10320617]
[1756734479109,0.74647679,109120.0,109110.0,0.01987617]
[1756734479312,0.74647679,109120.0,109110.0,0.02315125]
[1756734479715,0.36498,109120.0,109110.0,0.07177125]
[1756734479909,0.36498,109120.0,109110.0,0.10748125]
[1756734480513,0.00418,109120.0,109110.0,0.10748125]
[1756734481017,0.36498,109120.0,109110.0,0.10748125]
[1756734481718,0.36498,109120.0,109110.0,0.08860508]
[1756734482315,1.17286,109130.0,109120.0,0.08433]
[1756734482715,0.001,109120.0,109110.0,0.08860508]
[1756734483020,0.36498,109120.0,109110.0,0.08860508]
[1756734483221,0.00418,109120.0,109110.0,0.08860508]
[1756734483419,0.00418,109120.0,109110.0,0.43860508]
[1756734483622,0.00418,109120.0,109110.0,0.08860508]
[1756734484319,0.74647679,109120.0,109110.0,0.08760508]
[1756734484722,0.36498,109120.0,109110.0,0.08760508]
[1756734485117,0.36498,109120.0,109110.0,0.08860508]
[1756734485919,0.00418,109120.0,109110.0,0.08860508]
[1756734486625,0.00418,109120.0,109110.0,0.45860508]
[1756734486820,0.00418,109130.0,109120.0,0.08294]
[1756734487126,0.3618,109140.0,109120.0,1.12025679]
[1756734487329,0.36498,109140.0,109130.0,0.08294]
[1756734487522,0.00418,109140.0,109130.0,0.08294]
[1756734487717,0.00418,109160.0,109150.0,0.06194]
[1756734488018,0.00418,109160.0,109150.0,0.09692]
[1756734488419,0.74647679,109160.0,109150.0,0.04796]
[1756734488820,0.74647679,109160.0,109150.0,0.09692]
[1756734489024,0.74647679,109160.0,109150.0,0.06194]
[1756734489219,0.36798,109160.0,109150.0,0.09692]
[1756734489520,0.36798,109160.0,109150.0,0.04796]
[1756734489917,0.36798,109160.0,109150.0,0.09692]
[1756734490318,0.00718,109160.0,109150.0,0.09692]
[1756734490519,0.00418,109160.0,109150.0,0.09692]
[1756734490719,0.36598,109160.0,109150.0,0.09692]
[1756734491021,0.00518,109160.0,109150.0,0.09692]
[1756734491324,0.00518,109160.0,109150.0,0.44692]
[1756734491516,0.36598,109160.0,109150.0,0.44692]
[1756734491711,0.36798,109160.0,109150.0,0.09692]
[1756734492113,0.36698,109160.0,109150.0,0.09692]
[1756734492315,0.003,109160.0,109150.0,1.45921679]
[1756734492728,0.003,109160.0,109150.0,2.44846749]
[1756734492927,0.001,109180.0,109170.0,0.04796]
[1756734493118,1.26244,109190.0,109170.0,0.73945679]
[1756734493319,0.36719,109190.0,109180.0,0.46443679]
[1756734493521,0.37758,109200.0,109190.0,0.03498]
[1756734493719,0.37758,109200.0,109190.0,0.08294]
[1756734494116,0.01678,109200.0,109190.0,0.44374]
[1756734494324,0.01678,109200.0,109190.0,0.44814719]
[1756734494520,1.2588,109210.0,109190.0,0.75814719]
[1756734494722,1.27558,109210.0,109200.0,0.09692]
[1756734495129,1.52558,109210.0,109200.0,0.09692]
[1756734495531,1.52558,109210.0,109200.0,0.06194]
[1756734495731,1.52558,109210.0,109200.0,0.04796]
[1756734495931,1.52858,109210.0,109200.0,0.04796]
[1756734496843,1.91007679,109210.0,109190.0,0.40018719]
[1756734497130,0.01678,109200.0,109190.0,0.40876]
[1756734497326,0.01678,109190.0,109180.0,0.44374]
[1756734499132,0.01678,109190.0,109180.0,0.08294]
[1756734499133,0.39827679,109190.0,109180.0,0.08294]
[1756734499340,0.39827679,109190.0,109170.0,0.3608]
[1756734499341,0.01678,109180.0,109170.0,0.08746062]
[1756734499634,0.01678,109170.0,109160.0,0.4482705]
[1756734499929,0.01678,109170.0,109160.0,0.8082705]
[1756734500134,0.01678,109170.0,109160.0,0.4474705]
[1756734500837,0.01678,109170.0,109160.0,0.0874705]
[1756734501934,0.01678,109170.0,109160.0,0.0884705]
[1756734502134,0.01678,109170.0,109160.0,0.0904705]
[1756734502541,1.65323679,109170.0,109160.0,0.08594]
[1756734502741,1.65323679,109170.0,109160.0,0.08294]
[1756734502943,1.27174,109170.0,109160.0,0.08294]
[1756734503244,1.27174,109170.0,109160.0,0.08741749]
[1756734503639,1.27174,109170.0,109160.0,0.08294]
[1756734504348,1.65323679,109170.0,109160.0,0.08294]
[1756734504644,1.65423679,109170.0,109160.0,0.04796]
[1756734504842,1.90523679,109170.0,109160.0,0.02331]
[1756734505042,0.01678,109160.0,109150.0,0.09692]
[1756734505243,0.37758,109160.0,109150.0,0.09692]
[1756734506041,0.37758,109160.0,109150.0,0.04796]
[1756734506248,0.37758,109160.0,109150.0,0.08294]
[1756734507147,0.37758,109160.0,109150.0,0.08752348]
[1756734508151,0.75907679,109160.0,109150.0,0.08752348]
[1756734508649,0.76007679,109160.0,109150.0,0.08752348]
[1756734508849,0.37858,109160.0,109150.0,0.08752348]
[1756734509151,0.37958,109160.0,109150.0,0.08752348]
[1756734509741,0.37958,109160.0,109150.0,0.10150348]
[1756734510051,0.002,109160.0,109150.0,1.09300027]
[1756734510251,0.01878,109160.0,109150.0,0.10150348]
[1756734510855,0.002,109160.0,109150.0,0.10150348]
[1756734511153,0.001,109160.0,109150.0,1.10300027]
[1756734511751,1.25723,109170.0,109160.0,0.03498]
[1756734511939,1.25723,109170.0,109160.0,0.08294]
[1756734512346,0.36719,109170.0,109160.0,0.08294]
[1756734513351,0.37758,109170.0,109160.0,0.08294]
[1756734514845,0.01678,109170.0,109160.0,0.84443679]
[1756734515053,0.3648,109180.0,109160.0,0.80945679]
[1756734515252,1.26574,109180.0,109170.0,0.08245]
[1756734515551,0.37758,109180.0,109170.0,0.08245]
[1756734517049,0.37858,109180.0,109170.0,0.08245]
[1756734518245,0.37958,109180.0,109170.0,0.08245]
[1756734518845,0.37858,109180.0,109170.0,0.08245]
[1756734519644,0.37958,109180.0,109170.0,0.08245]
[1756734523844,0.01878,109180.0,109170.0,0.08245]
[1756734524051,0.37958,109180.0,109170.0,0.08245]
[1756734524251,0.37858,109180.0,109170.0,0.08245]
[1756734525467,0.01778,109180.0,109170.0,0.08245]
[1756734525755,0.01778,109180.0,109170.0,1.42474679]
[1756734525756,0.002,109180.0,109170.0,1.42474679]
[1756734526462,0.001,109180.0,109170.0,1.42474679]
[1756734526859,0.001,109180.0,109170.0,1.51634139]
[1756734527255,0.38178,109210.0,109200.0,0.09732]
[1756734527459,0.40360662,109210.0,109200.0,0.09732]
[1756734527859,0.38178,109210.0,109200.0,0.47881679]
[1756734528457,0.38178,109210.0,109200.0,0.09732]
[1756734528665,0.38178,109210.0,109200.0,0.10184375]
[1756734529550,0.02098,109210.0,109200.0,0.12184375]
[1756734529754,0.02198,109210.0,109200.0,0.12184375]
[1756734529963,0.02198,109210.0,109200.0,0.45184375]
[1756734530361,0.02198,109210.0,109200.0,0.10184375]
[1756734530663,0.02098,109210.0,109200.0,0.10184375]
[1756734530856,0.02098,109210.0,109200.0,0.17644421]
[1756734531057,0.38178,109210.0,109200.0,0.17644421]
[1756734531257,0.38178,109210.0,109200.0,0.17844421]
[1756734531965,0.38178,109210.0,109200.0,0.17644421]
[1756734532262,0.38178,109210.0,109200.0,0.17744421]
[1756734533359,0.02098,109210.0,109200.0,0.17744421]
[1756734533957,1.24952,109220.0,109200.0,0.558941]
[1756734534262,1.2655,109220.0,109210.0,0.08245]
[1756734535162,0.38178,109220.0,109210.0,0.08245]
[1756734535365,0.38178,109230.0,109220.0,0.08245]
[1756734535561,0.38178,109230.0,109220.0,0.46394679]
[1756734535763,0.38178,109230.0,109220.0,0.08245]
[1756734536564,0.02098,109230.0,109220.0,0.44325]
[1756734536766,0.02098,109230.0,109220.0,0.91629949]
[1756734537066,0.02098,109230.0,109220.0,1.27629949]
[1756734537265,1.24184,109240.0,109230.0,0.08245]
[1756734537266,1.26282,109240.0,109230.0,0.08245]
[1756734537464,1.26282,109240.0,109230.0,0.46394679]
[1756734537864,0.90202,109240.0,109230.0,0.82474679]
[1756734538259,0.88903,109240.0,109230.0,0.46394679]
[1756734538768,0.90202,109240.0,109230.0,0.46394679]
[1756734539765,0.90202,109240.0,109230.0,0.08245]
[1756734539963,0.90202,109240.0,109230.0,0.77394679]
[1756734540163,0.89702,109240.0,109230.0,0.86549119]
[1756734540372,0.90202,109240.0,109230.0,0.8447944]
[1756734540562,0.88204,109240.0,109230.0,1.22629119]
[1756734540760,0.004,109240.0,109230.0,1.47629119]
[1756734541165,0.3698,109270.0,109250.0,0.1521876]
[1756734541465,0.39858,109270.0,109260.0,0.08245]
[1756734542366,0.39858,109270.0,109260.0,0.17428625]
[1756734542573,0.39858,109270.0,109260.0,0.55578304]
[1756734542872,1.28002,109280.0,109270.0,0.08245]
[1756734543072,1.28002,109280.0,109270.0,0.46394679]
[1756734543462,0.91922,109280.0,109270.0,0.46394679]
[1756734543671,1.28002,109280.0,109270.0,0.08245]
[1756734544082,0.91922,109280.0,109270.0,0.46394679]
[1756734544572,0.92522,109280.0,109270.0,0.46394679]
[1756734544773,0.88744,109280.0,109270.0,1.27625759]
[1756734544970,0.01,109280.0,109270.0,1.07474679]
[1756734545174,0.019,109280.0,109270.0,1.59406679]
[1756734545375,0.019,109280.0,109270.0,0.41245]
[1756734545578,0.03339,109280.0,109270.0,0.79394679]
[1756734545876,0.02439,109280.0,109270.0,0.79394679]
[1756734546075,0.02439,109280.0,109270.0,1.67390679]
[1756734546476,0.02439,109280.0,109270.0,0.79394679]
[1756734546677,0.02039,109280.0,109270.0,1.67362679]
[1756734547071,0.01639,109280.0,109270.0,1.67362679]
[1756734547271,0.01939,109280.0,109270.0,1.21213]
[1756734547472,0.005,109280.0,109270.0,1.66362679]
[1756734548070,0.005,109280.0,109270.0,1.91362679]
[1756734548275,0.005,109280.0,109270.0,2.27442679]
[1756734548472,0.005,109280.0,109270.0,1.01325]
[1756734548676,0.005,109280.0,109270.0,2.27358679]
[1756734549174,0.005,109280.0,109270.0,1.39474679]
[1756734549385,0.005,109280.0,109270.0,2.27354679]
[1756734549880,0.005,109280.0,109270.0,2.36505759]
[1756734552481,0.005,109280.0,109270.0,2.36497759]
[1756734553185,0.003,109280.0,109270.0,2.36497759]
[1756734553380,0.003,109280.0,109270.0,1.39474679]
[1756734553686,0.04078,109280.0,109270.0,1.32193]
[1756734553882,0.03778,109280.0,109270.0,0.96109]
[1756734554381,0.39858,109290.0,109280.0,0.08316]
[1756734554587,0.39858,109290.0,109280.0,0.46465679]
[1756734554776,0.39858,109290.0,109280.0,0.08316]
[1756734554981,0.78007679,109290.0,109280.0,0.02323]
[1756734555379,0.39858,109290.0,109280.0,0.02323]
[1756734555978,0.63958,109290.0,109270.0,0.036]
[1756734556179,0.03778,109280.0,109270.0,0.08316]
[1756734556574,0.03778,109270.0,109260.0,0.22492461]
[1756734556775,1.03007679,109270.0,109260.0,0.12347891]
[1756734557584,1.35007679,109270.0,109260.0,0.07631891]
[1756734557883,0.009,109250.0,109240.0,0.41749679]
[1756734558086,0.03778,109250.0,109240.0,1.02172]
[1756734558679,0.02339,109250.0,109240.0,1.02172]
[1756734558881,1.02786,109270.0,109260.0,0.08316]
[1756734559389,1.65935679,109270.0,109260.0,0.0743107]
[1756734559588,1.65935679,109270.0,109240.0,1.3014932]
[1756734559786,0.03778,109260.0,109250.0,0.09806]
[1756734559989,0.03778,109260.0,109250.0,0.47955679]
[1756734560286,0.39858,109260.0,109250.0,0.09806]
[1756734560482,1.03007679,109260.0,109250.0,0.04716]
[1756734560890,0.64858,109260.0,109250.0,0.04716]
[1756734561087,0.64858,109260.0,109250.0,0.08316]
[1756734561278,0.64858,109260.0,109250.0,0.08516]
[1756734561483,0.64858,109260.0,109250.0,0.05216]
[1756734562388,0.64858,109260.0,109250.0,0.08816]
[1756734563292,0.64858,109260.0,109250.0,0.10306]
[1756734563883,0.64858,109260.0,109250.0,0.08816]
[1756734564794,0.64858,109260.0,109250.0,0.10306]
[1756734565687,0.03778,109260.0,109250.0,0.48455679]
[1756734565994,1.27706,109270.0,109260.0,0.08316]
[1756734566189,1.29817434,109270.0,109260.0,0.08316]
[1756734567394,1.29817434,109270.0,109260.0,0.08416]
[1756734567886,1.67967113,109270.0,109260.0,0.07312165]
[1756734568095,1.92967113,109270.0,109260.0,0.07312165]
[1756734568599,1.92967113,109270.0,109260.0,0.09735165]
[1756734569088,1.92967113,109270.0,109260.0,0.07412165]
[1756734569294,2.29967113,109270.0,109260.0,0.07412165]
[1756734569702,2.29967113,109270.0,109260.0,0.06512165]
[1756734569996,2.34881696,109270.0,109260.0,0.001]
[1756734570892,2.33981696,109270.0,109210.0,0.48282921]
[1756734571099,0.3608,109230.0,109220.0,0.08416]
[1756734571285,1.64186235,109230.0,109220.0,0.001]
[1756734571486,1.64186235,109230.0,109210.0,0.10374351]
[1756734571795,1.64186235,109230.0,109220.0,0.001]
[1756734572191,1.64186235,109230.0,109210.0,0.1122669]
[1756734572392,1.64186235,109230.0,109220.0,0.001]
[1756734572796,1.64186235,109230.0,109210.0,0.1122669]
[1756734573100,1.64186235,109230.0,109220.0,0.001]
[1756734573396,0.76346235,109230.0,109210.0,0.1142669]
[1756734573599,1.2392,109220.0,109210.0,0.1102669]
[1756734573793,0.3608,109220.0,109210.0,0.0742669]
[1756734573993,0.3608,109220.0,109210.0,0.00652339]
[1756734574196,0.74229679,109220.0,109210.0,0.00652339]
[1756734574589,1.06229679,109220.0,109210.0,0.00652339]
[1756734574789,1.06229679,109220.0,109210.0,0.001]
[1756734574790,1.36229679,109220.0,109210.0,0.001]
[1756734574999,1.38338525,109220.0,109210.0,0.001]
[1756734575296,1.37229679,109220.0,109210.0,0.001]
[1756734575496,1.37229679,109220.0,109200.0,0.0801412]